Cogmind - Beta 13 *** ADVENTURER MODE // 2024.05.29 @ 20:14:12 Player: K0T Result: Destroyed by Y-45 Defender with Beam Rifle Performance ------------- Evolutions (0) 0 Regions Visited (2) 400 Robots Destroyed (8) 40 Value Destroyed (265) 265 Prototype IDs (0) 0 Alien Tech Used (0) 0 Bonus (0) 0 TOTAL SCORE: 705 Bonus ------- None Cogmind --------- Core Integrity 0/250 Matter 273/300 Energy 125/125 System Corruption 2% Temperature Cool (27) Movement Walking (190) Ox1 Location -10/Mines Parts ------- > --- POWER (1) -------- Light Ion Engine > --- PROPULSION (2) --- Aluminum Leg > --- UTILITY (2) ------ Medium Storage Unit > --- WEAPON (2) ------- Assault Rifle > --- INVENTORY (10) --- Light Nuclear Core Improved Heat Sink Improved Heat Sink Huge Storage Unit Compact Matter Pod (150) ECM Suite Light Cannon Grenade Launcher Grenade Launcher Hammer Peak State ------------ > --- POWER ------------ Light Ion Engine > --- PROPULSION ------- Aluminum Leg > --- UTILITY ---------- Medium Storage Unit Structural Scanner > --- WEAPON ----------- Beam Cannon Light Assault Rifle > --- INVENTORY -------- Light Ion Engine Light Nuclear Core Improved Heat Sink Improved Heat Sink ECM Suite Grenade Launcher Grenade Launcher Welding Torch [Rating: 7] Favorites ----------- Power Light Ion Engine Engine Light Ion Engine Propulsion Light Treads Treads Light Treads Leg Aluminum Leg Utility Medium Storage Unit Device Structural Scanner Storage Medium Storage Unit Weapon Light Assault Rifle Energy Cannon Beam Cannon Ballistic Gun Light Assault Rifle Special Weapon Mining Laser Impact Weapon Hammer Build | -11 -10 -10 ------- Run | Yrd Mat Min Slots Evolved . | . . . Power . | . . . Propulsion . | . . . Utility . | . . . Weapon . | . . . Parts Attached 17 | 5 3 9 Power 3 | 1 . 2 Engine 3 | 1 . 2 Core . | . . . Reactor . | . . . Propulsion 4 | 2 . 2 Treads 2 | 2 . . Leg 2 | . . 2 Wheel . | . . . Hover . | . . . Flight . | . . . Utility 4 | 1 1 2 Device 1 | . . 1 Storage 3 | 1 1 1 Processor . | . . . Hackware . | . . . Protection . | . . . Artifact . | . . . Weapon 6 | 1 2 3 Energy Gun . | . . . Energy Cannon 1 | . . 1 Ballistic Gun 3 | 1 1 1 Ballistic Cannon . | . . . Launcher . | . . . Special Weapon 1 | . 1 . Impact Weapon 1 | . . 1 Slashing Weapon . | . . . Piercing Weapon . | . . . Special Melee Weapon . | . . . Unidentified Prototypes . | . . . Parts Lost 7 | . 3 4 Power 1 | . 1 . Propulsion 3 | . 2 1 Utility 1 | . . 1 Weapon 2 | . . 2 Highest Loss Streak 2 | . 1 2 To Critical Strikes . | . . . Average Slot Usage (%) 68 | . 58 74 Engine 9 | . 8 10 Treads 8 | . 22 . Leg 8 | . . 13 Device 7 | . . 12 Storage 14 | . 14 14 Energy Cannon 3 | . . 5 Ballistic Gun 12 | . 13 12 Special Weapon 2 | . . 3 Impact Weapon 1 | . . 1 Naked Turns . | . . . Heaviest Build 26 | 9 26 19 Greatest Support 40 | 40 40 10 Greatest Overweight (x) 8 | . 8 4 Average Overweight (x) . | . . 1 Largest Inventory Capacity 15 | 8 15 10 Average Capacity 9 | 5 8 10 Most Carried 10 | 5 8 10 Average Carried 7 | 2 4 8 Final Capacity 10 | 8 8 10 Final Carried 10 | 1 8 10 Class Distribution -------------------- 100% | Mutant Dominant Class ---------------- Mutant | -10/Materials Mutant | -10/Mines Resources | -11 -10 -10 ----------- Run | Yrd Mat Min Matter Collected 424 | 241 19 164 Remotely . | . . . Salvage Created 319 | . 229 90 Parts 16 | . 12 4 Haulers Intercepted . | . . . Recyclers Shooed . | . . . Parts Field Recycled . | . . . Retrieved Matter . | . . . Parts Self-Destructed . | . . . Prevented . | . . . Kills | -11 -10 -10 ------- Run | Yrd Mat Min Combat Hostiles Destroyed 7 | . 5 2 Guns 7 | . 5 2 Classes Destroyed 2 | . 1 1 Worker 1 | . . 1 Grunt 7 | . 5 2 Best Kill Streak 5 | . 5 2 Combat Bots Only 5 | . 5 2 Max Kills in Single Turn 1 | . 1 1 Gunslinging . | . . . Exploded . | . . . Melee . | . . . Uniques/NPCs Destroyed . | . . . Combat | -11 -10 -10 -------- Run | Yrd Mat Min Hostile Shots Fired 139 | . 88 51 Missed 42 | . 27 15 Damage Taken 1077 | . 638 439 Core 252 | . 139 113 Absorbed by Shields . | . . . Ignored by Resistances 325 | . 198 127 Core Remaining (%) 100 | 100 . . Volleys Fired 62 | . 45 17 Largest 2 | . 1 2 Hottest 120 | . 20 120 Shots Fired 68 | . 46 22 Gun 63 | . 46 17 Cannon 3 | . . 3 Launcher . | . . . Special 2 | . . 2 Kinetic 63 | . 46 17 Thermal 5 | . . 5 Explosive . | . . . Electromagnetic . | . . . Robot Hit Streak 44 | . 44 15 Robot Miss Streak 1 | . 1 1 Penetration Max . | . . . Secondary Targets . | . . . Shots Hit Robots 64 | . 44 20 Core Hits 21 | . 14 7 Critical Kills . | . . . Critical Parts Destroyed . | . . . Critical Strikes . | . . . Melee Attacks . | . . . Impact . | . . . Slashing . | . . . Piercing . | . . . Sneak Attacks . | . . . Combat Hostiles . | . . . Follow-up Attacks . | . . . Damage Inflicted 601 | . 369 232 Guns 524 | . 369 155 Cannons 53 | . . 53 Explosions . | . . . Melee . | . . . Ramming . | . . . Kinetic 524 | . 369 155 Thermal 77 | . . 77 Explosive . | . . . Electromagnetic . | . . . Impact . | . . . Slashing . | . . . Piercing . | . . . Highest Corruption 2 | . 2 2 Average Corruption 1 | . 1 2 Corruption Purged . | . . . Corruption Blocked . | . . . Effects 19 | . 4 15 Message Errors 4 | . 1 3 Matter Fused 6 | . 1 5 Energy Discharges 2 | . . 2 Parts Rejected 1 | . 1 . Data Loss (minor) 2 | . . 2 Data Loss (major) 1 | . . 1 Misfires 2 | . 1 1 Weapon Failures 1 | . . 1 Overload Shots . | . . . Overflow Damage . | . . . Projectiles . | . . . Explosions . | . . . Melee . | . . . Knockbacks . | . . . Impact . | . . . Kinetic . | . . . Secondary . | . . . Self-Inflicted Damage . | . . . Shots . | . . . Rammed . | . . . Targets Rammed . | . . . Kicked . | . . . Crushed . | . . . Highest Temperature 126 | . 21 126 Average Temperature 25 | . 6 42 Received Heat Transfer 684 | . 429 255 Siege Activations . | . . . Robots Corrupted . | . . . Combat Hostiles . | . . . Parts Fried . | . . . Impact Corruptions . | . . . Robots Melted . | . . . Combat Hostiles . | . . . Parts Melted . | . . . Heat Transferred 161 | . . 161 Parts Sabotaged . | . . . Parts Stolen . | . . . Parts Stripped . | . . . Power Chain Reactions . | . . . Alert | -11 -10 -10 ------- Run | Yrd Mat Min Peak Influence 132 | . 132 51 Initial 21 | . . 21 Average 22 | . 35 15 Maximum Alert Level . | . . . Low Security (%) 100 | 100 100 100 Level 1 . | . . . Level 2 . | . . . Level 3 . | . . . Level 4 . | . . . Level 5 . | . . . High Security . | . . . Max Security . | . . . Squads Dispatched 2 | . 2 . Investigation 2 | . 2 . Extermination . | . . . Reinforcement . | . . . Assault . | . . . Garrison . | . . . Intercept . | . . . Searches Triggered . | . . . Construction Impeded . | . . . Haulers Reinforced . | . . . Active Scanning Responses . | . . . Cargo Convoy Interrupts . | . . . Stealth | -11 -10 -10 --------- Run | Yrd Mat Min Distress Signals . | . . . Communications Jammed . | . . . Distress Signals . | . . . Times Spotted 18 | . 14 4 Peak Tracking Total 7 | . 7 2 Tactical Retreats 1 | . 1 . Traps | -11 -10 -10 ------- Run | Yrd Mat Min Traps Triggered 4 | . 3 1 Indirectly . | . . . Trap Hack Attempts . | . . . Triggered . | . . . Disarmed . | . . . Reprogrammed . | . . . Reused . | . . . Traps Extracted . | . . . Installed . | . . . Triggered . | . . . Machines | -11 -10 -10 ---------- Run | Yrd Mat Min Machines Disabled . | . . . Max in Single Turn . | . . . Machines Repaired . | . . . Machines Dismantled . | . . . Machines Sabotaged . | . . . Overloaded Fab Kills . | . . . Hacking | -11 -10 -10 --------- Run | Yrd Mat Min Machines Accessed 4 | . 3 1 Terminals 1 | . 1 . Fabricators . | . . . Repair Stations . | . . . Recycling Units 2 | . 2 . Scanalyzers . | . . . Garrison Access . | . . . Total Hacks 8 | . 7 1 Successful 6 | . 5 1 Failed 2 | . 2 . Catastrophic . | . . . Database Lockouts . | . . . Manual 7 | . 7 . Terminals 2 | . 2 . Fabricators . | . . . Repair Stations . | . . . Recycling Units 5 | . 5 . Scanalyzers . | . . . Garrison Access . | . . . Terminal Hacks 2 | . 1 1 Open Door 1 | . . 1 Branch Access Points 1 | . 1 . Fabricator Hacks . | . . . Repair Station Hacks . | . . . Recycling Unit Hacks . | . . . Scanalyzer . | . . . Garrison Access Hacks . | . . . Unauthorized Hacks 4 | . 4 . Terminals 1 | . 1 . Botnet 1 | . 1 . Fabricators . | . . . Repair Stations . | . . . Recycling Units 3 | . 3 . Monitor 1 | . 1 . Tunnel 2 | . 2 . Scanalyzers . | . . . Garrison Access . | . . . Data Cores Recovered . | . . . Used . | . . . Hacking Detections 2 | . 2 . Full Trace Events . | . . . Feedback Events . | . . . Feedback Blocked . | . . . Robot Schematics Acquired . | . . . Robots Built . | . . . Authchips . | . . . Time . | . . . Total Robot Build Rating . | . . . Part Schematics Acquired . | . . . Parts Built . | . . . Authchips . | . . . Time . | . . . Total Part Build Rating . | . . . Parts Repaired . | . . . Time . | . . . Parts Recycled . | . . . Recycled Matter . | . . . Retrieved Matter . | . . . Retrieved Components . | . . . Parts Scanalyzed . | . . . Part Schematics Acquired . | . . . Parts Damaged . | . . . Bothacking | -11 -10 -10 ------------ Run | Yrd Mat Min Used RIF Installer . | . . . Robots Hacked . | . . . Non-combat . | . . . Combat . | . . . Robot Hacks Applied . | . . . Relay Couplers Released . | . . . Fabnet Peak Effective % . | . . . Robots Rewired . | . . . Allies Hacked . | . . . Hacks Repelled . | . . . Allies | -11 -10 -10 -------- Run | Yrd Mat Min Total Allies . | . . . Largest Group . | . . . Highest-Rated Group . | . . . Highest-Rated Ally . | . . . Total Orders . | . . . Ally Attacks . | . . . Total Damage . | . . . Kills . | . . . Allies Corrupted . | . . . Allies Melted . | . . . Intel | -11 -10 -10 ------- Run | Yrd Mat Min Robot Analysis Total . | . . . Derelict Logs Recovered . | . . . Drone Launches . | . . . Drone Recoveries . | . . . Exploration | -11 -10 -10 ------------- Run | Yrd Mat Min Turns Passed 1449 | 34 541 874 Spaces Moved 712 | 33 281 398 Core 69 | 26 25 18 Treads 263 | 7 256 . Legs 380 | . . 380 Wheels . | . . . Hover . | . . . Flight . | . . . Fastest Speed 50 | 50 100 190 Average Speed 171 | 73 156 190 Slowest Speed 450 | 160 450 250 Overloaded Moves . | . . . Propulsion Burnouts . | . . . Robots Hopped . | . . . Cave-ins Triggered . | . . . Exploration Rate (%) 44 | 3 42 88 Regions Visited 2 Branch Regions 1 Pre-discovered Areas 2 | . 2 . Known Exits Taken 1 | . 1 . Unknown Exits Taken 1 | 1 . . Scrap Searched 1 | . . 1 Spaces Dug . | . . . Terrain Destroyed . | . . . Melee . | . . . Projectile . | . . . AOE . | . . . Terrain Rammed . | . . . Walls Destroyed . | . . . Machines Disabled . | . . . Actions | -11 -10 -10 --------- Run | Yrd Mat Min Total 877 | 42 346 489 Wait 58 | . 7 51 Move 710 | 32 280 398 Hop . | . . . Pick Up 24 | 5 9 10 Fast Attach 4 | 1 2 1 Attach 10 | 4 1 5 Detach . | . . . Swap 3 | . . 3 Drop 6 | . 2 4 Fire 62 | . 45 17 Melee . | . . . Ram . | . . . Kick . | . . . Crush . | . . . Escape Stasis . | . . . Rewire . | . . . Trap . | . . . Miscellaneous . | . . . Route ------- -11/Scrapyard -10/Materials -10/Mines (discovered 2 exits: [*Mat x2]) History --------- Turn | Location | Event 7 | -11/Scrapyard | Discovered new exit (range 14) 35 | -11/Scrapyard | Entered Materials 148 | -10/Materials | Identified exit to Mines 314 | -10/Materials | Build established: Mutant 561 | -10/Materials | Core integrity fell below 50% 576 | -10/Materials | Entered Mines 859 | -10/Mines | Met a Derelict who couldn't figure out how to use a Trap Extractor 997 | -10/Mines | Discovered new exit (range 5) 1142 | -10/Mines | Discovered new exit (range 8) 1335 | -10/Mines | Found a hidden stash of uninstalled traps 1402 | -10/Mines | Core integrity fell below 20% 1450 | -10/Mines | Destroyed by Y-45 Defender with Beam Rifle Last Messages --------------- Found Hcp. Battery. Found Hammer. Found 11 Matter. Acquired 5 matter. Dropped Lgt. Assault Rifle. Acquired Hammer. Dropped Welding Torch. Acquired Lgt. Cannon. R-06 Scavenger collects Lgt. Assault Rifle. KWKFME DBP,GTMTLD:TYLTNW5FJRX< A stash of uninstalled traps is collected here! Structural Scanner destroyed. Critical hit (Burn: +37). Beam Cannon destroyed. System corrupted: Energy discharge (-28). System corrupted: Matter fused (-8). K-01 Serf destroyed. Acquired 15 matter. Critical hit (Burn: +37). [Achievement: Back For More] Map ----- +----------------------------------------------------+ | ##??????????????##### #### ###?? | | ##????????########## ##########?? | | ##????????######## ##?? | | ##????????## ##?? | | ? ##???## #### ###### ##?? | | ##??? #####[! ####### ##?? | | ##????????###%| #####??## ##?? | | ## ##????????###! #####???## ##?? | | ## #####????????### ###?????## ##?? | | ?? #####????????## ##??????## ##?? | | ?? ##???????????## ####??????## ##?? | | ?? ???????????## ####?????### ##?? | | ??###???????????## ###?######## ##?? | | ??###??????####### ########### ###? | | ???????########### ##### ###? | | ???????###### ## #### #### ### | | ??????? ## ####Y##### &### | | ???????? ## ###### ##### & &## | | ??????"" ## ###### ##### && ## | | ???? """ ### #### ##### ## | | ???? ##### !!! #### ## ## | | ?????""" ##### !!! #### ## ### ### | | ?????""" ##?## !!! #### ## ### ### | | ??????"" ##?## !! ! #### ##*### ##? | | #### ##?## #### ## ### ##? | | ####### ###?### @ !### ##? | | ## ##?### k ########### ##? | | ## #### ##?### * ########## ##? | | ## #### ##?## ######!?## ###? | | ### ##### ######"!! # ###? | | ##### ###?## / ##? | | ### #### < ##??## / ##? | | """### ## ###??##"[[ # ##? | | """### ####??###![## ##? | | """### ####???######### ###? | | #### ########?#############? | | ###### ######################?? | | ########## ####### #### ###???????? | | ######?### ###### ## ###??????? | | ??????#### ###### ####?????? | | ??????### ###?????? | | ?????###! ###????? | | ?????## ! ### ##????? | | ????### ! #### ##????? | | ????## #### ### ###????? | | ????## ############# #####????? | | ????## ####################?????? | | ????### ####??????????#####???????? | | ????########????????????????????????? | | ?????######?????????????????????????? | +----------------------------------------------------+ Best States ------------- Heat Dissipation 25 Energy Generation 10 Energy Capacity 125 Matter Stores 300 Matter Capacity 300 Sight Range 16 Terrain Scan Density 10 Resistance: KI 20 Resistance: TH 20 Resistance: EX 20 Resistance: EM 20 Resistance: I 20 Resistance: S 20 Resistance: P 20 Evasion (%) 50 Recoil Reduction 2 Offensive Hacking 10 Item Schematics ----------------- None Robot Schematics ------------------ None Fabricated ------------ Nothing Alien Tech Used ----------------- None Achievements -------------- Back For More Challenges ------------ None Game ------ Seed TripodGrapheneFemtoactuators Manual? 0 Play Time 00:13:26 Cumulative 54.9 hours Start 2024.05.29 @ 20:02:54 End 2024.05.29 @ 20:14:12 Sessions 1 Manual Loads 0 Difficulty Adventurer Special Mode None Game No. 50 Rogue 45 Adventurer 5 Explorer 0 Win Type - Total 1 Types 1/0/0/0/0/0/0/0/0 Lore% 38 Gallery% 41 Achievement% 36 Wizard Run 0 Options --------- Layout 1 ASCII 0 Keyboard 0 Movement Mouse Keybinds 0 Fullscreen 1 Font 24/Smallcaps Map View 50x35 Zoom Use 0% Tactical HUD 0 Map Filters NONE Filters NONE Steam 0 RUN: 358be475-7eaf-40bb-9ec5-63a39b3be670